Workbook

Sheet 2019年
A1: 生产过程产生的固体废物利用及处置情况（按日填写）板纸
A2: 日期 | B2: 固 体 废 物 名 称 | C2: 数量（吨） | D2: 利 用 情 况 | F2: 处 置 情 况 | H2: 累计存储数量（吨） | I2: 记录人签字
D3: 利用数量 | E3: 去 向 | F3: 处置数量 | G3: 去 向
D4: （吨） | F4: （吨）
A5: 2019-01-01 | B5: 废包装桶 | J5: 2017年 | L5: 2018年
A6: 2019-01-02 | B6: 废包装桶 | J6: 2吨 | L6: 0吨
A7: 2019-01-03 | B7: 废包装桶
A8: 2019-01-04 | B8: 废包装桶
A9: 2019-01-05 | B9: 废包装桶
A10: 2019-01-06 | B10: 废包装桶
A11: 2019-01-07 | B11: 废包装桶
A12: 2019-01-08 | B12: 废包装桶
A13: 2019-01-09 | B13: 废包装桶
A14: 2019-01-10 | B14: 废包装桶
A15: 2019-01-11 | B15: 废包装桶
A16: 2019-01-12 | B16: 废包装桶
A17: 2019-01-13 | B17: 废包装桶
A18: 2019-01-14 | B18: 废包装桶
A19: 2019-01-15 | B19: 废包装桶
A20: 2019-01-16 | B20: 废包装桶
A21: 2019-01-17 | B21: 废包装桶
A22: 2019-01-18 | B22: 废包装桶
A23: 2019-01-19 | B23: 废包装桶
A24: 2019-01-20 | B24: 废包装桶
A25: 2019-01-21 | B25: 废包装桶
A26: 2019-01-22 | B26: 废包装桶
A27: 2019-01-23 | B27: 废包装桶
A28: 2019-01-24 | B28: 废包装桶 | C28: 1.7 | F28: 1.7 | G28: 湖州南太湖资源回收有限公司 | H28: =C28-F28 -> 0 | I28: 方剑其
A29: 2019-01-25 | B29: 废包装桶
A30: 2019-01-26 | B30: 废包装桶
A31: 2019-01-27 | B31: 废包装桶
A32: 2019-01-28 | B32: 废包装桶
A33: 2019-01-29 | B33: 废包装桶
A34: 2019-01-30 | B34: 废包装桶
A35: 2019-01-31 | B35: 废包装桶
A36: 合计 | C36: =C28 -> 1.7 | F36: =F28 -> 1.7 | H36: =H28 -> 0
A37: 备注：2019年1月1日起开始统计
A40: 2019-02-01 | B40: 废包装桶
A41: 2019-02-02 | B41: 废包装桶
A42: 2019-02-03 | B42: 废包装桶
A43: 2019-02-04 | B43: 废包装桶
A44: 2019-02-05 | B44: 废包装桶
A45: 2019-02-06 | B45: 废包装桶
A46: 2019-02-07 | B46: 废包装桶
A47: 2019-02-08 | B47: 废包装桶
A48: 2019-02-09 | B48: 废包装桶
A49: 2019-02-10 | B49: 废包装桶
A50: 2019-02-11 | B50: 废包装桶
A51: 2019-02-12 | B51: 废包装桶
A52: 2019-02-13 | B52: 废包装桶
A53: 2019-02-14 | B53: 废包装桶
A54: 2019-02-15 | B54: 废包装桶
A55: 2019-02-16 | B55: 废包装桶
A56: 2019-02-17 | B56: 废包装桶
A57: 2019-02-18 | B57: 废包装桶
A58: 2019-02-19 | B58: 废包装桶
A59: 2019-02-20 | B59: 废包装桶
A60: 2019-02-21 | B60: 废包装桶
A61: 2019-02-22 | B61: 废包装桶
A62: 2019-02-23 | B62: 废包装桶
A63: 2019-02-24 | B63: 废包装桶
A64: 2019-02-25 | B64: 废包装桶
A65: 2019-02-26 | B65: 废包装桶
A66: 2019-02-27 | B66: 废包装桶
A67: 2019-02-28 | B67: 废包装桶
A71: 合计 | C71: =SUM(C40:C70) -> 0 | F71: =SUM(F40:F70) -> 0 | H71: =H36 -> 0
A73: 2019-03-01 | B73: 废包装桶
A74: 2019-03-02 | B74: 废包装桶
A75: 2019-03-03 | B75: 废包装桶
A76: 2019-03-04 | B76: 废包装桶
A77: 2019-03-05 | B77: 废包装桶
A78: 2019-03-06 | B78: 废包装桶
A79: 2019-03-07 | B79: 废包装桶
A80: 2019-03-08 | B80: 废包装桶
A81: 2019-03-09 | B81: 废包装桶
A82: 2019-03-10 | B82: 废包装桶
A83: 2019-03-11 | B83: 废包装桶
A84: 2019-03-12 | B84: 废包装桶
A85: 2019-03-13 | B85: 废包装桶
A86: 2019-03-14 | B86: 废包装桶
A87: 2019-03-15 | B87: 废包装桶
A88: 2019-03-16 | B88: 废包装桶
A89: 2019-03-17 | B89: 废包装桶
A90: 2019-03-18 | B90: 废包装桶
A91: 2019-03-19 | B91: 废包装桶
A92: 2019-03-20 | B92: 废包装桶
A93: 2019-03-21 | B93: 废包装桶
A94: 2019-03-22 | B94: 废包装桶
A95: 2019-03-23 | B95: 废包装桶
A96: 2019-03-24 | B96: 废包装桶
A97: 2019-03-25 | B97: 废包装桶
A98: 2019-03-26 | B98: 废包装桶
A99: 2019-03-27 | B99: 废包装桶
A100: 2019-03-28 | B100: 废包装桶
A101: 2019-03-29 | B101: 废包装桶
A102: 2019-03-30 | B102: 废包装桶
A103: 2019-03-31 | B103: 废包装桶
A104: 合计 | C104: 0 | F104: 0 | H104: =H71 -> 0
A106: 2019-04-01 | B106: 废包装桶
A107: 2019-04-02 | B107: 废包装桶
A108: 2019-04-03 | B108: 废包装桶
A109: 2019-04-04 | B109: 废包装桶
A110: 2019-04-05 | B110: 废包装桶
A111: 2019-04-06 | B111: 废包装桶
A112: 2019-04-07 | B112: 废包装桶
A113: 2019-04-08 | B113: 废包装桶
A114: 2019-04-09 | B114: 废包装桶
A115: 2019-04-10 | B115: 废包装桶
A116: 2019-04-11 | B116: 废包装桶
A117: 2019-04-12 | B117: 废包装桶
A118: 2019-04-13 | B118: 废包装桶
A119: 2019-04-14 | B119: 废包装桶
A120: 2019-04-15 | B120: 废包装桶
A121: 2019-04-16 | B121: 废包装桶
A122: 2019-04-17 | B122: 废包装桶
A123: 2019-04-18 | B123: 废包装桶
A124: 2019-04-19 | B124: 废包装桶
A125: 2019-04-20 | B125: 废包装桶
A126: 2019-04-21 | B126: 废包装桶
A127: 2019-04-22 | B127: 废包装桶
A128: 2019-04-23 | B128: 废包装桶
A129: 2019-04-24 | B129: 废包装桶
A130: 2019-04-25 | B130: 废包装桶
A131: 2019-04-26 | B131: 废包装桶
A132: 2019-04-27 | B132: 废包装桶
A133: 2019-04-28 | B133: 废包装桶
A134: 2019-04-29 | B134: 废包装桶
A135: 2019-04-30 | B135: 废包装桶
A137: 合计 | C137: 0 | F137: 0 | H137: =H135 -> 0
A139: 2019-05-01 | B139: 废包装桶
A140: 2019-05-02 | B140: 废包装桶
A141: 2019-05-03 | B141: 废包装桶
A142: 2019-05-04 | B142: 废包装桶
A143: 2019-05-05 | B143: 废包装桶
A144: 2019-05-06 | B144: 废包装桶
A145: 2019-05-07 | B145: 废包装桶
A146: 2019-05-08 | B146: 废包装桶
A147: 2019-05-09 | B147: 废包装桶
A148: 2019-05-10 | B148: 废包装桶
A149: 2019-05-11 | B149: 废包装桶
A150: 2019-05-12 | B150: 废包装桶
A151: 2019-05-13 | B151: 废包装桶
A152: 2019-05-14 | B152: 废包装桶
A153: 2019-05-15 | B153: 废包装桶
A154: 2019-05-16 | B154: 废包装桶
A155: 2019-05-17 | B155: 废包装桶
A156: 2019-05-18 | B156: 废包装桶
A157: 2019-05-19 | B157: 废包装桶
A158: 2019-05-20 | B158: 废包装桶
A159: 2019-05-21 | B159: 废包装桶
A160: 2019-05-22 | B160: 废包装桶
A161: 2019-05-23 | B161: 废包装桶
A162: 2019-05-24 | B162: 废包装桶
A163: 2019-05-25 | B163: 废包装桶
A164: 2019-05-26 | B164: 废包装桶
A165: 2019-05-27 | B165: 废包装桶
A166: 2019-05-28 | B166: 废包装桶
A167: 2019-05-29 | B167: 废包装桶
A168: 2019-05-30 | B168: 废包装桶
A169: 2019-05-31 | B169: 废包装桶
A170: 合计 | C170: 0 | F170: 0 | H170: =H168 -> 0
A172: 2019-06-01 | B172: 废包装桶
A173: 2019-06-02 | B173: 废包装桶
A174: 2019-06-03 | B174: 废包装桶
A175: 2019-06-04 | B175: 废包装桶
A176: 2019-06-05 | B176: 废包装桶
A177: 2019-06-06 | B177: 废包装桶
A178: 2019-06-07 | B178: 废包装桶
A179: 2019-06-08 | B179: 废包装桶
A180: 2019-06-09 | B180: 废包装桶
A181: 2019-06-10 | B181: 废包装桶
A182: 2019-06-11 | B182: 废包装桶
A183: 2019-06-12 | B183: 废包装桶
A184: 2019-06-13 | B184: 废包装桶
A185: 2019-06-14 | B185: 废包装桶
A186: 2019-06-15 | B186: 废包装桶
A187: 2019-06-16 | B187: 废包装桶
A188: 2019-06-17 | B188: 废包装桶
A189: 2019-06-18 | B189: 废包装桶
A190: 2019-06-19 | B190: 废包装桶
A191: 2019-06-20 | B191: 废包装桶
A192: 2019-06-21 | B192: 废包装桶
A193: 2019-06-22 | B193: 废包装桶
A194: 2019-06-23 | B194: 废包装桶
A195: 2019-06-24 | B195: 废包装桶
A196: 2019-06-25 | B196: 废包装桶
A197: 2019-06-26 | B197: 废包装桶
A198: 2019-06-27 | B198: 废包装桶
A199: 2019-06-28 | B199: 废包装桶
A200: 2019-06-29 | B200: 废包装桶
A201: 2019-06-30 | B201: 废包装桶
A203: 合计 | C203: 0 | F203: 0 | H203: =H201 -> 0
A205: 2019-07-01 | B205: 废包装桶
A206: 2019-07-02 | B206: 废包装桶
A207: 2019-07-03 | B207: 废包装桶
A208: 2019-07-04 | B208: 废包装桶
A209: 2019-07-05 | B209: 废包装桶
A210: 2019-07-06 | B210: 废包装桶
A211: 2019-07-07 | B211: 废包装桶
A212: 2019-07-08 | B212: 废包装桶
... 182 more rows

Sheet 2019年月度统计
A1: 生产过程产生的固体废物利用及处置情况（按日填写）板纸 ( 2019)
A2: 日期 | B2: 固 体 废 物 名 称 | C2: 数量（吨） | D2: 利 用 情 况 | F2: 处 置 情 况 | H2: 累计存储数量（吨） | I2: 记录人签字
D3: 利用数量 | E3: 去 向 | F3: 处置数量 | G3: 去 向
D4: （吨） | F4: （吨） | J4: 201812
A5: 1月份 | B5: 废包装桶 | C5: ='2019年 '!C36 -> 1.7 | F5: ='2019年 '!F36 -> 1.7 | G5: 湖州南太湖资源回收有限公司 | H5: ='2019年 '!H36 -> 0 | I5: 方剑其 | J5: 0吨
A6: 2月份 | B6: 废包装桶 | C6: ='2019年 '!C71 -> 0 | F6: ='2019年 '!F71 -> 0 | H6: 0 | I6: 方剑其
A7: 3月份 | B7: 废包装桶 | C7: ='2019年 '!C104 -> 0 | F7: ='2019年 '!F104 -> 0 | H7: ='2019年 '!H104 -> 0 | I7: 方剑其
A8: 4月份 | B8: 废包装桶 | C8: ='2019年 '!C137 -> 0 | F8: ='2019年 '!F137 -> 0 | H8: ='2019年 '!H137 -> 0 | I8: 方剑其
A9: 5月份 | B9: 废包装桶 | C9: 0 | F9: 0 | H9: 0 | I9: 方剑其
A10: 6月份 | B10: 废包装桶 | C10: 0 | F10: 0 | H10: 0 | I10: 方剑其
A11: 7月份 | B11: 废包装桶 | C11: 0 | F11: 0 | H11: 0 | I11: 方剑其
A12: 8月份 | B12: 废包装桶 | C12: ='2019年 '!C269 -> 0 | F12: ='2019年 '!F269 -> 0 | H12: ='2019年 '!H269 -> 0 | I12: 方剑其
A13: 9月份 | B13: 废包装桶 | C13: ='2019年 '!C302 -> 0.183 | F13: ='2019年 '!F302 -> 0 | H13: ='2019年 '!H302 -> 0.183 | I13: 方剑其
A14: 10月份 | B14: 废包装桶 | C14: ='2019年 '!C335 -> 0 | F14: ='2019年 '!F335 -> 0 | H14: =H13 -> 0.183 | I14: 方剑其
A15: 11月份 | B15: 废包装桶 | C15: ='2019年 '!C367 -> 0 | F15: ='2019年 '!F367 -> 0 | H15: ='2019年 '!H367 -> 0.183 | I15: 方剑其
A16: 12月份 | B16: 废包装桶 | C16: ='2019年 '!C400 -> 0 | F16: ='2019年 '!F400 -> 0 | H16: ='2019年 '!H400 -> 0.183 | I16: 方剑其
A17: 合计 | C17: =SUM(C5:C16) -> 1.883 | F17: =SUM(F5:F16) -> 1.7 | H17: =H16 -> 0.183
A19: 板纸废包装桶2019年1月份开始统计

Sheet 2020年
A1: 生产过程产生的固体废物利用及处置情况（按日填写）板纸
A2: 日期 | B2: 固 体 废 物 名 称 | C2: 数量（吨） | D2: 利 用 情 况 | F2: 处 置 情 况 | H2: 累计存储数量（吨） | I2: 记录人签字
D3: 利用数量 | E3: 去 向 | F3: 处置数量 | G3: 去 向
D4: （吨） | F4: （吨）
A5: 2020-01-01 | B5: 废包装桶 | H5: =M5 -> 0.183 | I5: 方剑其 | J5: 2017年 | L5: 2018年 | M5: ='2019年月度统计 '!H17 -> 0.183
A6: 2020-01-02 | B6: 废包装桶 | J6: 2吨 | L6: 0吨
A7: 2020-01-03 | B7: 废包装桶
A8: 2020-01-04 | B8: 废包装桶
A9: 2020-01-05 | B9: 废包装桶
A10: 2020-01-06 | B10: 废包装桶
A11: 2020-01-07 | B11: 废包装桶
A12: 2020-01-08 | B12: 废包装桶
A13: 2020-01-09 | B13: 废包装桶
A14: 2020-01-10 | B14: 废包装桶
A15: 2020-01-11 | B15: 废包装桶
A16: 2020-01-12 | B16: 废包装桶
A17: 2020-01-13 | B17: 废包装桶
A18: 2020-01-14 | B18: 废包装桶
A19: 2020-01-15 | B19: 废包装桶
A20: 2020-01-16 | B20: 废包装桶
A21: 2020-01-17 | B21: 废包装桶
A22: 2020-01-18 | B22: 废包装桶
A23: 2020-01-19 | B23: 废包装桶
A24: 2020-01-20 | B24: 废包装桶
A25: 2020-01-21 | B25: 废包装桶
A26: 2020-01-22 | B26: 废包装桶
A27: 2020-01-23 | B27: 废包装桶
A28: 2020-01-24 | B28: 废包装桶
A29: 2020-01-25 | B29: 废包装桶
A30: 2020-01-26 | B30: 废包装桶
A31: 2020-01-27 | B31: 废包装桶
A32: 2020-01-28 | B32: 废包装桶
A33: 2020-01-29 | B33: 废包装桶
A34: 2020-01-30 | B34: 废包装桶
A35: 2020-01-31 | B35: 废包装桶
A36: 合计 | C36: =C28 -> 0 | F36: =F28 -> 0 | H36: =H5 -> 0.183
A37: 备注：2019年1月1日起开始统计
A40: 2020-02-01 | B40: 废包装桶
A41: 2020-02-02 | B41: 废包装桶
A42: 2020-02-03 | B42: 废包装桶
A43: 2020-02-04 | B43: 废包装桶
A44: 2020-02-05 | B44: 废包装桶
A45: 2020-02-06 | B45: 废包装桶
A46: 2020-02-07 | B46: 废包装桶
A47: 2020-02-08 | B47: 废包装桶
A48: 2020-02-09 | B48: 废包装桶
A49: 2020-02-10 | B49: 废包装桶
A50: 2020-02-11 | B50: 废包装桶
A51: 2020-02-12 | B51: 废包装桶
A52: 2020-02-13 | B52: 废包装桶
A53: 2020-02-14 | B53: 废包装桶
A54: 2020-02-15 | B54: 废包装桶
A55: 2020-02-16 | B55: 废包装桶
A56: 2020-02-17 | B56: 废包装桶
A57: 2020-02-18 | B57: 废包装桶
A58: 2020-02-19 | B58: 废包装桶
A59: 2020-02-20 | B59: 废包装桶
A60: 2020-02-21 | B60: 废包装桶
A61: 2020-02-22 | B61: 废包装桶
A62: 2020-02-23 | B62: 废包装桶
A63: 2020-02-24 | B63: 废包装桶
A64: 2020-02-25 | B64: 废包装桶
A65: 2020-02-26 | B65: 废包装桶
A66: 2020-02-27 | B66: 废包装桶
A67: 2020-02-28 | B67: 废包装桶
A68: 2020-02-29 | B68: 废包装桶
A71: 合计 | C71: =SUM(C40:C70) -> 0 | F71: =SUM(F40:F70) -> 0 | H71: =H36 -> 0.183
A73: 2020-03-01 | B73: 废包装桶
A74: 2020-03-02 | B74: 废包装桶
A75: 2020-03-03 | B75: 废包装桶
A76: 2020-03-04 | B76: 废包装桶
A77: 2020-03-05 | B77: 废包装桶
A78: 2020-03-06 | B78: 废包装桶
A79: 2020-03-07 | B79: 废包装桶
A80: 2020-03-08 | B80: 废包装桶
A81: 2020-03-09 | B81: 废包装桶
A82: 2020-03-10 | B82: 废包装桶
A83: 2020-03-11 | B83: 废包装桶
A84: 2020-03-12 | B84: 废包装桶
A85: 2020-03-13 | B85: 废包装桶
A86: 2020-03-14 | B86: 废包装桶
A87: 2020-03-15 | B87: 废包装桶
A88: 2020-03-16 | B88: 废包装桶
A89: 2020-03-17 | B89: 废包装桶
A90: 2020-03-18 | B90: 废包装桶
A91: 2020-03-19 | B91: 废包装桶
A92: 2020-03-20 | B92: 废包装桶
A93: 2020-03-21 | B93: 废包装桶
A94: 2020-03-22 | B94: 废包装桶
A95: 2020-03-23 | B95: 废包装桶
A96: 2020-03-24 | B96: 废包装桶
A97: 2020-03-25 | B97: 废包装桶
A98: 2020-03-26 | B98: 废包装桶
A99: 2020-03-27 | B99: 废包装桶
A100: 2020-03-28 | B100: 废包装桶
A101: 2020-03-29 | B101: 废包装桶
A102: 2020-03-30 | B102: 废包装桶
A103: 2020-03-31 | B103: 废包装桶
A104: 合计 | C104: 0 | F104: 0 | H104: =H71 -> 0.183
A106: 2020-04-01 | B106: 废包装桶
A107: 2020-04-02 | B107: 废包装桶
A108: 2020-04-03 | B108: 废包装桶
A109: 2020-04-04 | B109: 废包装桶
A110: 2020-04-05 | B110: 废包装桶
A111: 2020-04-06 | B111: 废包装桶
A112: 2020-04-07 | B112: 废包装桶
A113: 2020-04-08 | B113: 废包装桶
A114: 2020-04-09 | B114: 废包装桶
A115: 2020-04-10 | B115: 废包装桶
A116: 2020-04-11 | B116: 废包装桶
A117: 2020-04-12 | B117: 废包装桶
A118: 2020-04-13 | B118: 废包装桶
A119: 2020-04-14 | B119: 废包装桶
A120: 2020-04-15 | B120: 废包装桶
A121: 2020-04-16 | B121: 废包装桶
A122: 2020-04-17 | B122: 废包装桶
A123: 2020-04-18 | B123: 废包装桶
A124: 2020-04-19 | B124: 废包装桶
A125: 2020-04-20 | B125: 废包装桶
A126: 2020-04-21 | B126: 废包装桶
A127: 2020-04-22 | B127: 废包装桶
A128: 2020-04-23 | B128: 废包装桶
A129: 2020-04-24 | B129: 废包装桶
A130: 2020-04-25 | B130: 废包装桶
A131: 2020-04-26 | B131: 废包装桶
A132: 2020-04-27 | B132: 废包装桶
A133: 2020-04-28 | B133: 废包装桶
A134: 2020-04-29 | B134: 废包装桶
A135: 2020-04-30 | B135: 废包装桶
A137: 合计 | C137: 0 | F137: 0 | H137: =H104 -> 0.183
A139: 2020-05-01 | B139: 废包装桶
A140: 2020-05-02 | B140: 废包装桶
A141: 2020-05-03 | B141: 废包装桶
A142: 2020-05-04 | B142: 废包装桶
A143: 2020-05-05 | B143: 废包装桶
A144: 2020-05-06 | B144: 废包装桶
A145: 2020-05-07 | B145: 废包装桶
A146: 2020-05-08 | B146: 废包装桶
A147: 2020-05-09 | B147: 废包装桶
A148: 2020-05-10 | B148: 废包装桶
A149: 2020-05-11 | B149: 废包装桶
A150: 2020-05-12 | B150: 废包装桶
A151: 2020-05-13 | B151: 废包装桶
A152: 2020-05-14 | B152: 废包装桶
A153: 2020-05-15 | B153: 废包装桶
A154: 2020-05-16 | B154: 废包装桶
A155: 2020-05-17 | B155: 废包装桶
A156: 2020-05-18 | B156: 废包装桶
A157: 2020-05-19 | B157: 废包装桶
A158: 2020-05-20 | B158: 废包装桶
A159: 2020-05-21 | B159: 废包装桶 | C159: =((17*5)+15)/1000 -> 0.1 | H159: =H137+C159 -> 0.283 | I159: 方剑其
A160: 2020-05-22 | B160: 废包装桶
A161: 2020-05-23 | B161: 废包装桶
A162: 2020-05-24 | B162: 废包装桶
A163: 2020-05-25 | B163: 废包装桶
A164: 2020-05-26 | B164: 废包装桶
A165: 2020-05-27 | B165: 废包装桶
A166: 2020-05-28 | B166: 废包装桶
A167: 2020-05-29 | B167: 废包装桶
A168: 2020-05-30 | B168: 废包装桶
A169: 2020-05-31 | B169: 废包装桶
A170: 合计 | C170: =C159 -> 0.1 | F170: =F159 -> 0 | H170: =H159 -> 0.283
A172: 2020-06-01 | B172: 废包装桶
A173: 2020-06-02 | B173: 废包装桶
A174: 2020-06-03 | B174: 废包装桶
A175: 2020-06-04 | B175: 废包装桶 | C175: 0.6 | F175: =H170+C175 -> 0.883 | G175: 浙江润淼再生资源有限公司 | H175: =H170+C175-F175 -> 0 | I175: 方剑其
A176: 2020-06-05 | B176: 废包装桶
A177: 2020-06-06 | B177: 废包装桶
A178: 2020-06-07 | B178: 废包装桶
A179: 2020-06-08 | B179: 废包装桶
A180: 2020-06-09 | B180: 废包装桶
A181: 2020-06-10 | B181: 废包装桶
A182: 2020-06-11 | B182: 废包装桶
A183: 2020-06-12 | B183: 废包装桶 | C183: 0.195 | H183: =C183 -> 0.195 | I183: 方剑其
A184: 2020-06-13 | B184: 废包装桶
A185: 2020-06-14 | B185: 废包装桶
A186: 2020-06-15 | B186: 废包装桶
A187: 2020-06-16 | B187: 废包装桶
A188: 2020-06-17 | B188: 废包装桶
A189: 2020-06-18 | B189: 废包装桶
A190: 2020-06-19 | B190: 废包装桶
A191: 2020-06-20 | B191: 废包装桶
A192: 2020-06-21 | B192: 废包装桶
A193: 2020-06-22 | B193: 废包装桶
A194: 2020-06-23 | B194: 废包装桶
A195: 2020-06-24 | B195: 废包装桶
A196: 2020-06-25 | B196: 废包装桶
A197: 2020-06-26 | B197: 废包装桶
A198: 2020-06-27 | B198: 废包装桶
A199: 2020-06-28 | B199: 废包装桶
A200: 2020-06-29 | B200: 废包装桶
A201: 2020-06-30 | B201: 废包装桶
A203: 合计 | C203: =SUM(C172:C202) -> 0.795 | F203: =F175 -> 0.883 | H203: =H183 -> 0.195
A205: 2020-07-01 | B205: 废包装桶
A206: 2020-07-02 | B206: 废包装桶
A207: 2020-07-03 | B207: 废包装桶
A208: 2020-07-04 | B208: 废包装桶
A209: 2020-07-05 | B209: 废包装桶
A210: 2020-07-06 | B210: 废包装桶
A211: 2020-07-07 | B211: 废包装桶
... 183 more rows

Sheet 2020年月度统计
A1: 生产过程产生的固体废物利用及处置情况（按日填写）板纸 ( 2020)
A2: 日期 | B2: 固 体 废 物 名 称 | C2: 数量（吨） | D2: 利 用 情 况 | F2: 处 置 情 况 | H2: 累计存储数量（吨） | I2: 记录人签字
D3: 利用数量 | E3: 去 向 | F3: 处置数量 | G3: 去 向
D4: （吨） | F4: （吨） | J4: 201812
A5: 1月份 | B5: 废包装桶 | C5: 0 | F5: 0 | H5: ='2020年 '!H36 -> 0.183 | I5: 方剑其 | J5: 0吨 | K5: ='2019年月度统计 '!H17 -> 0.183
A6: 2月份 | B6: 废包装桶 | C6: 0 | F6: 0 | H6: =H5 -> 0.183 | I6: 方剑其
A7: 3月份 | B7: 废包装桶 | C7: 0 | F7: 0 | H7: =H6 -> 0.183 | I7: 方剑其
A8: 4月份 | B8: 废包装桶 | C8: ='2020年 '!C137 -> 0 | F8: ='2020年 '!F137 -> 0 | H8: ='2020年 '!H137 -> 0.183 | I8: 方剑其
A9: 5月份 | B9: 废包装桶 | C9: ='2020年 '!C170 -> 0.1 | F9: ='2020年 '!F170 -> 0 | H9: ='2020年 '!H170 -> 0.283 | I9: 方剑其
A10: 6月份 | B10: 废包装桶 | C10: ='2020年 '!C203 -> 0.795 | F10: ='2020年 '!F203 -> 0.883 | G10: 浙江润淼再生资源有限公司 | H10: ='2020年 '!H203 -> 0.195 | I10: 方剑其
A11: 7月份 | B11: 废包装桶 | C11: ='2020年 '!C236 -> 0 | F11: ='2020年 '!F236 -> 0 | H11: ='2020年 '!H236 -> 0.195 | I11: 方剑其
A12: 8月份 | B12: 废包装桶 | C12: ='2020年 '!C269 -> 0.018 | F12: ='2020年 '!F269 -> 0 | H12: ='2020年 '!H269 -> 0.213 | I12: 方剑其
A13: 9月份 | B13: 废包装桶 | C13: ='2020年 '!C302 -> 0.21 | F13: ='2020年 '!F302 -> 0 | H13: ='2020年 '!H302 -> 0.423 | I13: 方剑其
A14: 10月份 | B14: 废包装桶 | C14: ='2020年 '!C335 -> 0.694 | F14: ='2020年 '!F335 -> 1.117 | G14: 浙江润淼再生资源有限公司 | H14: ='2020年 '!H335 -> 0 | I14: 方剑其
A15: 11月份 | B15: 废包装桶 | C15: ='2020年 '!C367 -> 0 | F15: ='2020年 '!F367 -> 0 | H15: ='2020年 '!H367 -> 0 | I15: 诸美娟
A16: 12月份 | B16: 废包装桶 | C16: ='2020年 '!C400 -> 0 | F16: ='2020年 '!F400 -> 0 | H16: ='2020年 '!H400 -> 0 | I16: 诸美娟
A17: 合计 | C17: =SUM(C5:C16) -> 1.817 | F17: =SUM(F5:F16) -> 2 | H17: =H16 -> 0
A19: 板纸废包装桶2019年1月份开始统计

Sheet 2021年
A1: 生产过程产生的固体废物利用及处置情况（按日填写）板纸
A2: 日期 | B2: 固 体 废 物 名 称 | C2: 产生数量 | D2: 自行处置数量 | E2: 委托利用、处置情况 | G2: 累计贮存数量(吨) | H2: 备注 | I2: 填表人
E3: 委托利用数量 | F3: 委托处置数量
A4: 2021-01-01 | B4: 废包装桶 | J4: 2017年 | L4: 2018年
A5: 2021-01-02 | B5: 废包装桶 | J5: 2吨 | L5: 0吨
A6: 2021-01-03 | B6: 废包装桶
A7: 2021-01-04 | B7: 废包装桶
A8: 2021-01-05 | B8: 废包装桶
A9: 2021-01-06 | B9: 废包装桶
A10: 2021-01-07 | B10: 废包装桶
A11: 2021-01-08 | B11: 废包装桶
A12: 2021-01-09 | B12: 废包装桶
A13: 2021-01-10 | B13: 废包装桶
A14: 2021-01-11 | B14: 废包装桶
A15: 2021-01-12 | B15: 废包装桶
A16: 2021-01-13 | B16: 废包装桶
A17: 2021-01-14 | B17: 废包装桶
A18: 2021-01-15 | B18: 废包装桶
A19: 2021-01-16 | B19: 废包装桶
A20: 2021-01-17 | B20: 废包装桶
A21: 2021-01-18 | B21: 废包装桶
A22: 2021-01-19 | B22: 废包装桶
A23: 2021-01-20 | B23: 废包装桶
A24: 2021-01-21 | B24: 废包装桶
A25: 2021-01-22 | B25: 废包装桶
A26: 2021-01-23 | B26: 废包装桶
A27: 2021-01-24 | B27: 废包装桶
A28: 2021-01-25 | B28: 废包装桶 | C28: 0.086 | G28: =C28 -> 0.086 | I28: 诸美娟
A29: 2021-01-26 | B29: 废包装桶
A30: 2021-01-27 | B30: 废包装桶
A31: 2021-01-28 | B31: 废包装桶
A32: 2021-01-29 | B32: 废包装桶
A33: 2021-01-30 | B33: 废包装桶
A34: 2021-01-31 | B34: 废包装桶
A35: 合计 | C35: =C28 -> 0.086 | F35: =F27 -> 0 | G35: =G28 -> 0.086
A36: 备注：2019年1月1日起开始统计
A39: 2021-02-01 | B39: 废包装桶
A40: 2021-02-02 | B40: 废包装桶
A41: 2021-02-03 | B41: 废包装桶
A42: 2021-02-04 | B42: 废包装桶
A43: 2021-02-05 | B43: 废包装桶
A44: 2021-02-06 | B44: 废包装桶
A45: 2021-02-07 | B45: 废包装桶
A46: 2021-02-08 | B46: 废包装桶
A47: 2021-02-09 | B47: 废包装桶
A48: 2021-02-10 | B48: 废包装桶
A49: 2021-02-11 | B49: 废包装桶
A50: 2021-02-12 | B50: 废包装桶
A51: 2021-02-13 | B51: 废包装桶
A52: 2021-02-14 | B52: 废包装桶
A53: 2021-02-15 | B53: 废包装桶
A54: 2021-02-16 | B54: 废包装桶
A55: 2021-02-17 | B55: 废包装桶
A56: 2021-02-18 | B56: 废包装桶
A57: 2021-02-19 | B57: 废包装桶
A58: 2021-02-20 | B58: 废包装桶
A59: 2021-02-21 | B59: 废包装桶
A60: 2021-02-22 | B60: 废包装桶
A61: 2021-02-23 | B61: 废包装桶
A62: 2021-02-24 | B62: 废包装桶
A63: 2021-02-25 | B63: 废包装桶
A64: 2021-02-26 | B64: 废包装桶
A65: 2021-02-27 | B65: 废包装桶
A66: 2021-02-28 | B66: 废包装桶
A70: 合计 | C70: =SUM(C39:C69) -> 0 | F70: =SUM(F39:F69) -> 0 | G70: =G35 -> 0.086
A72: 2021-03-01 | B72: 废包装桶
A73: 2021-03-02 | B73: 废包装桶
A74: 2021-03-03 | B74: 废包装桶
A75: 2021-03-04 | B75: 废包装桶
A76: 2021-03-05 | B76: 废包装桶
A77: 2021-03-06 | B77: 废包装桶
A78: 2021-03-07 | B78: 废包装桶
A79: 2021-03-08 | B79: 废包装桶
A80: 2021-03-09 | B80: 废包装桶
A81: 2021-03-10 | B81: 废包装桶
A82: 2021-03-11 | B82: 废包装桶
A83: 2021-03-12 | B83: 废包装桶
A84: 2021-03-13 | B84: 废包装桶
A85: 2021-03-14 | B85: 废包装桶
A86: 2021-03-15 | B86: 废包装桶
A87: 2021-03-16 | B87: 废包装桶
A88: 2021-03-17 | B88: 废包装桶
A89: 2021-03-18 | B89: 废包装桶
A90: 2021-03-19 | B90: 废包装桶
A91: 2021-03-20 | B91: 废包装桶
A92: 2021-03-21 | B92: 废包装桶
A93: 2021-03-22 | B93: 废包装桶
A94: 2021-03-23 | B94: 废包装桶
A95: 2021-03-24 | B95: 废包装桶
A96: 2021-03-25 | B96: 废包装桶
A97: 2021-03-26 | B97: 废包装桶
A98: 2021-03-27 | B98: 废包装桶
A99: 2021-03-28 | B99: 废包装桶
A100: 2021-03-29 | B100: 废包装桶
A101: 2021-03-30 | B101: 废包装桶
A102: 2021-03-31 | B102: 废包装桶
A103: 合计 | C103: 0 | F103: 0 | G103: =G70 -> 0.086
A105: 2021-04-01 | B105: 废包装桶
A106: 2021-04-02 | B106: 废包装桶
A107: 2021-04-03 | B107: 废包装桶
A108: 2021-04-04 | B108: 废包装桶
A109: 2021-04-05 | B109: 废包装桶
A110: 2021-04-06 | B110: 废包装桶
A111: 2021-04-07 | B111: 废包装桶
A112: 2021-04-08 | B112: 废包装桶 | C112: 0.049 | G112: =G103+C112 -> 0.135 | I112: 诸美娟
A113: 2021-04-09 | B113: 废包装桶 | G113: =G112+C113-F113 -> 0.135
A114: 2021-04-10 | B114: 废包装桶 | G114: 0.135
A115: 2021-04-11 | B115: 废包装桶 | G115: 0.135
A116: 2021-04-12 | B116: 废包装桶 | G116: 0.135
A117: 2021-04-13 | B117: 废包装桶 | G117: 0.135
A118: 2021-04-14 | B118: 废包装桶 | G118: 0.135
A119: 2021-04-15 | B119: 废包装桶 | G119: 0.135
A120: 2021-04-16 | B120: 废包装桶 | G120: 0.135
A121: 2021-04-17 | B121: 废包装桶 | G121: 0.135
A122: 2021-04-18 | B122: 废包装桶 | G122: 0.135
A123: 2021-04-19 | B123: 废包装桶 | G123: 0.135
A124: 2021-04-20 | B124: 废包装桶 | G124: 0.135
A125: 2021-04-21 | B125: 废包装桶 | G125: 0.135
A126: 2021-04-22 | B126: 废包装桶 | C126: 0.033 | G126: 0.168 | I126: 诸美娟
A127: 2021-04-23 | B127: 废包装桶 | G127: 0.168
A128: 2021-04-24 | B128: 废包装桶 | G128: 0.168
A129: 2021-04-25 | B129: 废包装桶 | G129: 0.168
A130: 2021-04-26 | B130: 废包装桶 | G130: 0.168
A131: 2021-04-27 | B131: 废包装桶 | G131: 0.168
A132: 2021-04-28 | B132: 废包装桶 | G132: 0.168
A133: 2021-04-29 | B133: 废包装桶 | G133: 0.168
A134: 2021-04-30 | B134: 废包装桶 | G134: 0.168
G135: 0.168
A136: 合计 | C136: =C112+C126 -> 0.082 | F136: 0 | G136: =G135 -> 0.168
A138: 2021-05-01 | B138: 废包装桶 | G138: =G136+C138-F138 -> 0.168
A139: 2021-05-02 | B139: 废包装桶 | G139: =G138+C139-F139 -> 0.168
A140: 2021-05-03 | B140: 废包装桶 | G140: =G138+C140-F140 -> 0.168
A141: 2021-05-04 | B141: 废包装桶 | G141: 0.168
A142: 2021-05-05 | B142: 废包装桶 | G142: 0.168
A143: 2021-05-06 | B143: 废包装桶 | G143: 0.168
A144: 2021-05-07 | B144: 废包装桶 | G144: 0.168
A145: 2021-05-08 | B145: 废包装桶 | G145: 0.168
A146: 2021-05-09 | B146: 废包装桶 | G146: 0.168
A147: 2021-05-10 | B147: 废包装桶 | G147: 0.168
A148: 2021-05-11 | B148: 废包装桶 | G148: 0.168
A149: 2021-05-12 | B149: 废包装桶 | G149: 0.168
A150: 2021-05-13 | B150: 废包装桶 | G150: 0.168
A151: 2021-05-14 | B151: 废包装桶 | G151: 0.168
A152: 2021-05-15 | B152: 废包装桶 | G152: 0.168
A153: 2021-05-16 | B153: 废包装桶 | G153: 0.168
A154: 2021-05-17 | B154: 废包装桶 | G154: 0.168
A155: 2021-05-18 | B155: 废包装桶 | G155: 0.168
A156: 2021-05-19 | B156: 废包装桶 | G156: 0.168
A157: 2021-05-20 | B157: 废包装桶 | G157: 0.168
A158: 2021-05-21 | B158: 废包装桶 | G158: 0.168
A159: 2021-05-22 | B159: 废包装桶 | G159: 0.168
A160: 2021-05-23 | B160: 废包装桶 | G160: 0.168
A161: 2021-05-24 | B161: 废包装桶 | G161: 0.168
A162: 2021-05-25 | B162: 废包装桶 | G162: 0.168
A163: 2021-05-26 | B163: 废包装桶 | G163: 0.168
A164: 2021-05-27 | B164: 废包装桶 | G164: 0.168
A165: 2021-05-28 | B165: 废包装桶 | G165: 0.168
A166: 2021-05-29 | B166: 废包装桶 | G166: 0.168
A167: 2021-05-30 | B167: 废包装桶 | G167: 0.168
A168: 2021-05-31 | B168: 废包装桶 | G168: 0.168
A169: 合计 | C169: =C158 -> 0 | F169: =F158 -> 0 | G169: =G136 -> 0.168
A171: 2021-06-01 | B171: 废包装桶 | G171: =G169+C171-F171 -> 0.168
A172: 2021-06-02 | B172: 废包装桶 | G172: =G171+C172-F172 -> 0.168
A173: 2021-06-03 | B173: 废包装桶 | G173: =G171+C173-F173 -> 0.168
A174: 2021-06-04 | B174: 废包装桶 | G174: 0.168
A175: 2021-06-05 | B175: 废包装桶 | G175: 0.168
A176: 2021-06-06 | B176: 废包装桶 | G176: 0.168
A177: 2021-06-07 | B177: 废包装桶 | G177: 0.168
A178: 2021-06-08 | B178: 废包装桶 | G178: 0.168
A179: 2021-06-09 | B179: 废包装桶 | G179: 0.168
A180: 2021-06-10 | B180: 废包装桶 | G180: 0.168
A181: 2021-06-11 | B181: 废包装桶 | G181: 0.168
A182: 2021-06-12 | B182: 废包装桶 | G182: 0.168
A183: 2021-06-13 | B183: 废包装桶 | G183: 0.168
A184: 2021-06-14 | B184: 废包装桶 | G184: 0.168
A185: 2021-06-15 | B185: 废包装桶 | G185: 0.168
A186: 2021-06-16 | B186: 废包装桶 | G186: 0.168
A187: 2021-06-17 | B187: 废包装桶 | G187: 0.168
A188: 2021-06-18 | B188: 废包装桶 | G188: 0.168
A189: 2021-06-19 | B189: 废包装桶 | G189: 0.168
A190: 2021-06-20 | B190: 废包装桶 | G190: 0.168
A191: 2021-06-21 | B191: 废包装桶 | G191: 0.168
A192: 2021-06-22 | B192: 废包装桶 | G192: 0.168
A193: 2021-06-23 | B193: 废包装桶 | G193: 0.168
A194: 2021-06-24 | B194: 废包装桶 | G194: 0.168
A195: 2021-06-25 | B195: 废包装桶 | G195: 0.168
A196: 2021-06-26 | B196: 废包装桶 | G196: 0.168
A197: 2021-06-27 | B197: 废包装桶 | G197: 0.168
A198: 2021-06-28 | B198: 废包装桶 | G198: 0.168
A199: 2021-06-29 | B199: 废包装桶 | G199: 0.168
A200: 2021-06-30 | B200: 废包装桶 | G200: 0.168
A202: 合计 | C202: =SUM(C171:C201) -> 0 | F202: =F174 -> 0 | G202: =G182 -> 0.168
A204: 2021-07-01 | B204: 废包装桶 | G204: =G202+C204-F204 -> 0.168
A205: 2021-07-02 | B205: 废包装桶 | G205: =G204+C205-F205 -> 0.168
A206: 2021-07-03 | B206: 废包装桶 | G206: =G204+C206-F206 -> 0.168
A207: 2021-07-04 | B207: 废包装桶 | G207: 0.168
A208: 2021-07-05 | B208: 废包装桶 | G208: 0.168
A209: 2021-07-06 | B209: 废包装桶 | G209: 0.168
A210: 2021-07-07 | B210: 废包装桶 | G210: 0.168
A211: 2021-07-08 | B211: 废包装桶 | G211: 0.168
... 182 more rows

Sheet 2021年月度统计
A1: 生产过程产生的固体废物利用及处置情况（按日填写）板纸 ( 2021)
A2: 日期 | B2: 固 体 废 物 名 称 | C2: 产生数量 | D2: 自行处置数量 | E2: 委托利用、处置情况 | G2: 累计贮存数量（吨） | H2: 备注 | I2: 填表人
E3: 委托利用数量 | F3: 委托处置数量
A4: 1月份 | B4: 废包装桶 | C4: ='2021年 '!C35 -> 0.086 | F4: ='2021年 '!F35 -> 0 | G4: ='2021年 '!G35 -> 0.086 | I4: 诸美娟 | J4: 0吨
A5: 2月份 | B5: 废包装桶 | C5: ='2021年 '!C70 -> 0 | F5: ='2021年 '!F70 -> 0 | G5: ='2021年 '!G70 -> 0.086 | I5: 诸美娟
A6: 3月份 | B6: 废包装桶 | C6: ='2021年 '!C103 -> 0 | F6: ='2021年 '!F103 -> 0 | G6: ='2021年 '!G103 -> 0.086 | I6: 诸美娟
A7: 4月份 | B7: 废包装桶 | C7: ='2021年 '!C136 -> 0.082 | F7: ='2021年 '!F136 -> 0 | G7: ='2021年 '!G136 -> 0.168 | I7: 诸美娟
A8: 5月份 | B8: 废包装桶 | C8: ='2021年 '!C169 -> 0 | F8: ='2021年 '!F169 -> 0 | G8: ='2021年 '!G169 -> 0.168 | I8: 诸美娟
A9: 6月份 | B9: 废包装桶 | C9: ='2021年 '!C202 -> 0 | F9: ='2021年 '!F202 -> 0 | G9: ='2021年 '!G202 -> 0.168 | I9: 诸美娟
A10: 7月份 | B10: 废包装桶 | C10: ='2021年 '!C235 -> 0.072 | F10: ='2021年 '!F235 -> 0 | G10: ='2021年 '!G235 -> 0.24 | I10: 诸美娟
A11: 8月份 | B11: 废包装桶 | C11: ='2021年 '!C268 -> 0.034 | F11: ='2021年 '!F268 -> 0 | G11: ='2021年 '!G268 -> 0.274 | I11: 诸美娟
A12: 9月份 | B12: 废包装桶 | C12: ='2021年 '!C301 -> 0 | F12: ='2021年 '!F301 -> 0 | G12: ='2021年 '!G301 -> 0.274 | I12: 诸美娟
A13: 10月份 | B13: 废包装桶 | C13: ='2021年 '!C334 -> 0.4699 | F13: ='2021年 '!F334 -> 0.6109 | G13: ='2021年 '!G334 -> 0.133 | H13: 浙江润淼再生资源有限公司 | I13: 诸美娟
A14: 11月份 | B14: 废包装桶 | C14: ='2021年 '!C366 -> 0 | F14: ='2021年 '!F366 -> 0 | G14: ='2021年 '!G366 -> 0.133 | I14: 诸美娟
A15: 12月份 | B15: 废包装桶 | C15: ='2021年 '!C398 -> 0 | F15: ='2021年 '!F398 -> 0.133 | G15: ='2021年 '!G398 -> 0 | H15: 浙江润淼再生资源有限公司 | I15: 诸美娟
A16: 合计 | C16: =SUM(C4:C15) -> 0.7439 | F16: =SUM(F4:F15) -> 0.7439 | G16: =G15 -> 0
A18: 板纸废包装桶2019年1月份开始统计

Sheet 2022年
A1: 生产过程产生的固体废物利用及处置情况（按日填写）板纸
A2: 日期 | B2: 固 体 废 物 名 称 | C2: 产生数量 | D2: 自行处置数量 | E2: 委托利用、处置情况 | G2: 累计贮存数量(吨) | H2: 备注 | I2: 填表人
E3: 委托利用数量 | F3: 委托处置数量
A4: 2022-01-01 | B4: 废包装桶 | J4: 2017年 | L4: 2018年
A5: 2022-01-02 | B5: 废包装桶 | J5: 2吨 | L5: 0吨
A6: 2022-01-03 | B6: 废包装桶
A7: 2022-01-04 | B7: 废包装桶
A8: 2022-01-05 | B8: 废包装桶
A9: 2022-01-06 | B9: 废包装桶
A10: 2022-01-07 | B10: 废包装桶
A11: 2022-01-08 | B11: 废包装桶
A12: 2022-01-09 | B12: 废包装桶
A13: 2022-01-10 | B13: 废包装桶
A14: 2022-01-11 | B14: 废包装桶
A15: 2022-01-12 | B15: 废包装桶
A16: 2022-01-13 | B16: 废包装桶
A17: 2022-01-14 | B17: 废包装桶
A18: 2022-01-15 | B18: 废包装桶
A19: 2022-01-16 | B19: 废包装桶
A20: 2022-01-17 | B20: 废包装桶
A21: 2022-01-18 | B21: 废包装桶
A22: 2022-01-19 | B22: 废包装桶
A23: 2022-01-20 | B23: 废包装桶
A24: 2022-01-21 | B24: 废包装桶
A25: 2022-01-22 | B25: 废包装桶
A26: 2022-01-23 | B26: 废包装桶
A27: 2022-01-24 | B27: 废包装桶
A28: 2022-01-25 | B28: 废包装桶
A29: 2022-01-26 | B29: 废包装桶
A30: 2022-01-27 | B30: 废包装桶
A31: 2022-01-28 | B31: 废包装桶
A32: 2022-01-29 | B32: 废包装桶
A33: 2022-01-30 | B33: 废包装桶
A34: 2022-01-31 | B34: 废包装桶
A35: 合计 | C35: =C28 -> 0 | F35: =F27 -> 0 | G35: =G28 -> 0
A36: 备注：2019年1月1日起开始统计
A39: 2022-02-01 | B39: 废包装桶
A40: 2022-02-02 | B40: 废包装桶
A41: 2022-02-03 | B41: 废包装桶
A42: 2022-02-04 | B42: 废包装桶
A43: 2022-02-05 | B43: 废包装桶
A44: 2022-02-06 | B44: 废包装桶
A45: 2022-02-07 | B45: 废包装桶
A46: 2022-02-08 | B46: 废包装桶
A47: 2022-02-09 | B47: 废包装桶
A48: 2022-02-10 | B48: 废包装桶
A49: 2022-02-11 | B49: 废包装桶
A50: 2022-02-12 | B50: 废包装桶
A51: 2022-02-13 | B51: 废包装桶
A52: 2022-02-14 | B52: 废包装桶
A53: 2022-02-15 | B53: 废包装桶
A54: 2022-02-16 | B54: 废包装桶
A55: 2022-02-17 | B55: 废包装桶
A56: 2022-02-18 | B56: 废包装桶
A57: 2022-02-19 | B57: 废包装桶
A58: 2022-02-20 | B58: 废包装桶
A59: 2022-02-21 | B59: 废包装桶
A60: 2022-02-22 | B60: 废包装桶
A61: 2022-02-23 | B61: 废包装桶
A62: 2022-02-24 | B62: 废包装桶
A63: 2022-02-25 | B63: 废包装桶
A64: 2022-02-26 | B64: 废包装桶
A65: 2022-02-27 | B65: 废包装桶
A66: 2022-02-28 | B66: 废包装桶
A70: 合计 | C70: =SUM(C39:C69) -> 0 | F70: =SUM(F39:F69) -> 0 | G70: =G35 -> 0
A72: 2022-03-01 | B72: 废包装桶
A73: 2022-03-02 | B73: 废包装桶
A74: 2022-03-03 | B74: 废包装桶
A75: 2022-03-04 | B75: 废包装桶
A76: 2022-03-05 | B76: 废包装桶
A77: 2022-03-06 | B77: 废包装桶
A78: 2022-03-07 | B78: 废包装桶
A79: 2022-03-08 | B79: 废包装桶
A80: 2022-03-09 | B80: 废包装桶
A81: 2022-03-10 | B81: 废包装桶
A82: 2022-03-11 | B82: 废包装桶
A83: 2022-03-12 | B83: 废包装桶
A84: 2022-03-13 | B84: 废包装桶
A85: 2022-03-14 | B85: 废包装桶
A86: 2022-03-15 | B86: 废包装桶
A87: 2022-03-16 | B87: 废包装桶
A88: 2022-03-17 | B88: 废包装桶
A89: 2022-03-18 | B89: 废包装桶
A90: 2022-03-19 | B90: 废包装桶
A91: 2022-03-20 | B91: 废包装桶
A92: 2022-03-21 | B92: 废包装桶
A93: 2022-03-22 | B93: 废包装桶
A94: 2022-03-23 | B94: 废包装桶
A95: 2022-03-24 | B95: 废包装桶
A96: 2022-03-25 | B96: 废包装桶
A97: 2022-03-26 | B97: 废包装桶
A98: 2022-03-27 | B98: 废包装桶
A99: 2022-03-28 | B99: 废包装桶
A100: 2022-03-29 | B100: 废包装桶
A101: 2022-03-30 | B101: 废包装桶
A102: 2022-03-31 | B102: 废包装桶 | C102: 0.212 | G102: =C102 -> 0.212 | I102: 诸美娟
A103: 合计 | C103: =C102 -> 0.212 | F103: 0 | G103: =C102 -> 0.212
A105: 2022-04-01 | B105: 废包装桶 | G105: =G103+C105-F105 -> 0.212
A106: 2022-04-02 | B106: 废包装桶 | G106: =G105+C106-F106 -> 0.212
A107: 2022-04-03 | B107: 废包装桶 | G107: =G106+C107-F107 -> 0.212
A108: 2022-04-04 | B108: 废包装桶 | G108: =G107+C108-F108 -> 0.212
A109: 2022-04-05 | B109: 废包装桶 | G109: =G108+C109-F109 -> 0.212
A110: 2022-04-06 | B110: 废包装桶 | G110: =G109+C110-F110 -> 0.212
A111: 2022-04-07 | B111: 废包装桶 | G111: =G102+C111 -> 0.212
A112: 2022-04-08 | B112: 废包装桶 | G112: =G103+C112 -> 0.212
A113: 2022-04-09 | B113: 废包装桶 | G113: =G112+C113-F113 -> 0.212
A114: 2022-04-10 | B114: 废包装桶 | G114: 0.212
A115: 2022-04-11 | B115: 废包装桶 | G115: 0.212
A116: 2022-04-12 | B116: 废包装桶 | G116: 0.212
A117: 2022-04-13 | B117: 废包装桶 | G117: 0.212
A118: 2022-04-14 | B118: 废包装桶 | G118: 0.212
A119: 2022-04-15 | B119: 废包装桶 | G119: 0.212
A120: 2022-04-16 | B120: 废包装桶 | G120: 0.212
A121: 2022-04-17 | B121: 废包装桶 | G121: 0.212
A122: 2022-04-18 | B122: 废包装桶 | G122: 0.212
A123: 2022-04-19 | B123: 废包装桶 | G123: 0.212
A124: 2022-04-20 | B124: 废包装桶 | C124: 0.112 | G124: 0.324 | I124: 诸美娟
A125: 2022-04-21 | B125: 废包装桶 | G125: 0.324
A126: 2022-04-22 | B126: 废包装桶 | G126: 0.324
A127: 2022-04-23 | B127: 废包装桶 | G127: 0.324
A128: 2022-04-24 | B128: 废包装桶 | G128: 0.324
A129: 2022-04-25 | B129: 废包装桶 | G129: 0.324
A130: 2022-04-26 | B130: 废包装桶 | G130: 0.324
A131: 2022-04-27 | B131: 废包装桶 | G131: 0.324
A132: 2022-04-28 | B132: 废包装桶 | G132: 0.324
A133: 2022-04-29 | B133: 废包装桶 | G133: 0.324
A134: 2022-04-30 | B134: 废包装桶 | G134: 0.324
G135: 0.324
A136: 合计 | C136: =C124 -> 0.112 | F136: 0 | G136: =G135 -> 0.324
A138: 2022-05-01 | B138: 废包装桶 | G138: =G136+C138-F138 -> 0.324
A139: 2022-05-02 | B139: 废包装桶 | G139: =G138+C139-F139 -> 0.324
A140: 2022-05-03 | B140: 废包装桶 | G140: 0.324
A141: 2022-05-04 | B141: 废包装桶 | G141: 0.324
A142: 2022-05-05 | B142: 废包装桶 | G142: 0.324
A143: 2022-05-06 | B143: 废包装桶 | G143: 0.324
A144: 2022-05-07 | B144: 废包装桶 | G144: 0.324
A145: 2022-05-08 | B145: 废包装桶 | G145: 0.324
A146: 2022-05-09 | B146: 废包装桶 | G146: 0.324
A147: 2022-05-10 | B147: 废包装桶 | G147: 0.324
A148: 2022-05-11 | B148: 废包装桶 | G148: 0.324
A149: 2022-05-12 | B149: 废包装桶 | G149: 0.324
A150: 2022-05-13 | B150: 废包装桶 | G150: 0.324
A151: 2022-05-14 | B151: 废包装桶 | G151: 0.324
A152: 2022-05-15 | B152: 废包装桶 | G152: 0.324
A153: 2022-05-16 | B153: 废包装桶 | E153: 0.324 | G153: =G151+C153-E153 -> 0 | H153: 浙江润淼再生资源有限公司 | I153: 诸美娟/胡才法
A154: 2022-05-17 | B154: 废包装桶 | G154: =G153 -> 0
A155: 2022-05-18 | B155: 废包装桶 | G155: 0
A156: 2022-05-19 | B156: 废包装桶 | G156: 0
A157: 2022-05-20 | B157: 废包装桶 | G157: 0
A158: 2022-05-21 | B158: 废包装桶 | G158: 0
A159: 2022-05-22 | B159: 废包装桶 | G159: 0
A160: 2022-05-23 | B160: 废包装桶 | G160: 0
A161: 2022-05-24 | B161: 废包装桶 | G161: 0
A162: 2022-05-25 | B162: 废包装桶 | G162: 0
A163: 2022-05-26 | B163: 废包装桶 | C163: 0.08 | G163: 0.08 | I163: 诸美娟
A164: 2022-05-27 | B164: 废包装桶 | G164: =G163+C164-F164 -> 0.08
A165: 2022-05-28 | B165: 废包装桶 | G165: 0.08
A166: 2022-05-29 | B166: 废包装桶 | G166: 0.08
A167: 2022-05-30 | B167: 废包装桶 | G167: 0.08
A168: 2022-05-31 | B168: 废包装桶 | G168: 0.08
A169: 合计 | C169: =SUM(C138:C168) -> 0.08 | D169: =SUM(D138:D168) -> 0 | E169: =SUM(E138:E168) -> 0.324 | G169: =G168 -> 0.08
A171: 2022-06-01 | B171: 废包装桶 | G171: =G169+C171-F171 -> 0.08
A172: 2022-06-02 | B172: 废包装桶 | G172: =G171+C172-F172 -> 0.08
A173: 2022-06-03 | B173: 废包装桶 | G173: 0.08
A174: 2022-06-04 | B174: 废包装桶 | G174: 0.08
A175: 2022-06-05 | B175: 废包装桶 | G175: 0.08
A176: 2022-06-06 | B176: 废包装桶 | G176: 0.08
A177: 2022-06-07 | B177: 废包装桶 | G177: 0.08
A178: 2022-06-08 | B178: 废包装桶 | G178: 0.08
A179: 2022-06-09 | B179: 废包装桶 | G179: 0.08
A180: 2022-06-10 | B180: 废包装桶 | G180: 0.08
A181: 2022-06-11 | B181: 废包装桶 | G181: 0.08
A182: 2022-06-12 | B182: 废包装桶 | G182: 0.08
A183: 2022-06-13 | B183: 废包装桶 | G183: 0.08
A184: 2022-06-14 | B184: 废包装桶 | G184: 0.08
A185: 2022-06-15 | B185: 废包装桶 | G185: 0.08
A186: 2022-06-16 | B186: 废包装桶 | G186: 0.08
A187: 2022-06-17 | B187: 废包装桶 | G187: 0.08
A188: 2022-06-18 | B188: 废包装桶 | G188: 0.08
A189: 2022-06-19 | B189: 废包装桶 | G189: 0.08
A190: 2022-06-20 | B190: 废包装桶 | G190: 0.08
A191: 2022-06-21 | B191: 废包装桶 | G191: 0.08
A192: 2022-06-22 | B192: 废包装桶 | G192: 0.08
A193: 2022-06-23 | B193: 废包装桶 | G193: 0.08
A194: 2022-06-24 | B194: 废包装桶 | G194: 0.08
A195: 2022-06-25 | B195: 废包装桶 | G195: 0.08
A196: 2022-06-26 | B196: 废包装桶 | G196: 0.08
A197: 2022-06-27 | B197: 废包装桶 | G197: 0.08
A198: 2022-06-28 | B198: 废包装桶 | G198: 0.08
A199: 2022-06-29 | B199: 废包装桶 | C199: 0.094 | G199: =G198+C199-F199 -> 0.174 | I199: 诸美娟
A200: 2022-06-30 | B200: 废包装桶 | G200: =G199+C200-F200 -> 0.174
A202: 合计 | C202: =SUM(C171:C201) -> 0.094 | D202: =SUM(D171:D201) -> 0 | E202: =SUM(E171:E201) -> 0 | F202: =F174 -> 0 | G202: =G200 -> 0.174
A204: 2022-07-01 | B204: 废包装桶 | G204: =G202+C204-F204 -> 0.174
A205: 2022-07-02 | B205: 废包装桶 | G205: =G204+C205-F205 -> 0.174
A206: 2022-07-03 | B206: 废包装桶 | G206: 0.174
A207: 2022-07-04 | B207: 废包装桶 | G207: 0.174
A208: 2022-07-05 | B208: 废包装桶 | G208: 0.174
A209: 2022-07-06 | B209: 废包装桶 | G209: 0.174
A210: 2022-07-07 | B210: 废包装桶 | G210: 0.174
A211: 2022-07-08 | B211: 废包装桶 | G211: 0.174
... 182 more rows

Sheet 2022年月度统计
A1: 生产过程产生的固体废物利用及处置情况（按日填写）板纸 ( 2022)
A2: 日期 | B2: 固 体 废 物 名 称 | C2: 产生数量 | D2: 自行处置数量 | E2: 委托利用、处置情况 | G2: 累计贮存数量（吨） | H2: 备注 | I2: 填表人
E3: 委托利用数量 | F3: 委托处置数量
A4: 1月份 | B4: 废包装桶 | C4: 0 | E4: 0 | F4: 0 | G4: 0 | I4: 诸美娟 | J4: 0吨
A5: 2月份 | B5: 废包装桶 | C5: ='2022年 '!C70 -> 0 | E5: 0 | F5: ='2022年 '!F70 -> 0 | G5: ='2022年 '!G70 -> 0 | I5: 诸美娟
A6: 3月份 | B6: 废包装桶 | C6: ='2022年 '!C103 -> 0.212 | E6: 0 | F6: ='2022年 '!F103 -> 0 | G6: ='2022年 '!G103 -> 0.212 | I6: 诸美娟
A7: 4月份 | B7: 废包装桶 | C7: ='2022年 '!C136 -> 0.112 | E7: 0 | F7: ='2022年 '!F136 -> 0 | G7: ='2022年 '!G136 -> 0.324 | I7: 诸美娟
A8: 5月份 | B8: 废包装桶 | C8: ='2022年 '!C169 -> 0.08 | E8: ='2022年 '!E169 -> 0.324 | F8: ='2022年 '!F169 -> 0 | G8: ='2022年 '!G169 -> 0.08 | H8: 浙江润淼再生资源有限公司 | I8: 诸美娟/胡才法
A9: 6月份 | B9: 废包装桶 | C9: ='2022年 '!C202 -> 0.094 | E9: 0 | F9: ='2022年 '!F202 -> 0 | G9: ='2022年 '!G202 -> 0.174 | I9: 诸美娟
A10: 7月份 | B10: 废包装桶 | C10: ='2022年 '!C235 -> 0.096 | E10: ='2022年 '!E235 -> 0 | F10: ='2022年 '!F235 -> 0 | G10: ='2022年 '!G235 -> 0.27 | I10: 诸美娟
A11: 8月份 | B11: 废包装桶 | C11: ='2022年 '!C268 -> 0.1105 | E11: ='2022年 '!E268 -> 0 | F11: ='2022年 '!F268 -> 0 | G11: ='2022年 '!G268 -> 0.3805 | I11: 诸美娟/方剑其
A12: 9月份 | B12: 废包装桶 | C12: ='2022年 '!C301 -> 0.503 | E12: ='2022年 '!E301 -> 0.7585 | F12: ='2022年 '!F301 -> 0 | G12: ='2022年 '!G301 -> 0.125 | H12: 浙江润淼再生资源有限公司 | I12: 诸美娟
A13: 10月份 | B13: 废包装桶 | C13: ='2022年 '!C333 -> 0.256 | E13: ='2022年 '!E333 -> 0 | F13: ='2022年 '!F333 -> 0 | G13: ='2022年 '!G333 -> 0.381 | I13: 诸美娟
A14: 11月份 | B14: 废包装桶 | C14: ='2022年 '!C365 -> 0.145 | E14: ='2022年 '!E365 -> 0.526 | F14: ='2022年 '!F365 -> 0 | G14: ='2022年 '!G365 -> 0 | H14: 浙江润淼再生资源有限公司 | I14: 诸美娟 | J14: 0只
A15: 12月份 | B15: 废包装桶 | C15: ='2022年 '!C397 -> 0 | E15: ='2022年 '!E397 -> 0 | F15: ='2022年 '!F397 -> 0 | G15: ='2022年 '!G397 -> 0 | I15: 诸美娟
A16: 合计 | C16: =SUM(C4:C15) -> 1.6085 | D16: =SUM(D4:D15) -> 0 | E16: =SUM(E4:E15) -> 1.6085 | F16: =SUM(F4:F15) -> 0 | G16: =G14 -> 0
A18: 板纸废包装桶2019年1月份开始统计

Sheet 2023年
A1: 生产过程产生的固体废物利用及处置情况（按日填写）板纸
A2: 日期 | B2: 固 体 废 物 名 称 | C2: 产生数量 | D2: 自行处置数量 | E2: 委托利用、处置情况 | G2: 累计贮存数量(吨) | H2: 备注 | I2: 填表人
E3: 委托利用数量 | F3: 委托处置数量 | M3: 0
A4: 2023-01-01 | B4: 废包装桶 | J4: 2017年 | L4: 2018年
A5: 2023-01-02 | B5: 废包装桶 | J5: 2吨 | L5: 0吨
A6: 2023-01-03 | B6: 废包装桶
A7: 2023-01-04 | B7: 废包装桶
A8: 2023-01-05 | B8: 废包装桶 | C8: 0.405 | G8: 0.405 | I8: 诸美娟
A9: 2023-01-06 | B9: 废包装桶 | G9: =G8+C9-E9 -> 0.405
A10: 2023-01-07 | B10: 废包装桶 | G10: =G9+C10-E10 -> 0.405
A11: 2023-01-08 | B11: 废包装桶 | G11: 0.405
A12: 2023-01-09 | B12: 废包装桶 | G12: 0.405
A13: 2023-01-10 | B13: 废包装桶 | G13: 0.405
A14: 2023-01-11 | B14: 废包装桶 | G14: 0.405
A15: 2023-01-12 | B15: 废包装桶 | C15: 0.066 | G15: 0.471 | I15: 诸美娟
A16: 2023-01-13 | B16: 废包装桶 | G16: 0.471
A17: 2023-01-14 | B17: 废包装桶 | G17: 0.471
A18: 2023-01-15 | B18: 废包装桶 | G18: 0.471
A19: 2023-01-16 | B19: 废包装桶 | G19: 0.471
A20: 2023-01-17 | B20: 废包装桶 | G20: 0.471
A21: 2023-01-18 | B21: 废包装桶 | G21: 0.471
A22: 2023-01-19 | B22: 废包装桶 | G22: 0.471
A23: 2023-01-20 | B23: 废包装桶 | G23: 0.471
A24: 2023-01-21 | B24: 废包装桶 | G24: 0.471
A25: 2023-01-22 | B25: 废包装桶 | G25: 0.471
A26: 2023-01-23 | B26: 废包装桶 | G26: 0.471
A27: 2023-01-24 | B27: 废包装桶 | G27: 0.471
A28: 2023-01-25 | B28: 废包装桶 | G28: 0.471
A29: 2023-01-26 | B29: 废包装桶 | G29: 0.471
A30: 2023-01-27 | B30: 废包装桶 | G30: 0.471
A31: 2023-01-28 | B31: 废包装桶 | G31: 0.471
A32: 2023-01-29 | B32: 废包装桶 | G32: 0.471
A33: 2023-01-30 | B33: 废包装桶 | G33: 0.471
A34: 2023-01-31 | B34: 废包装桶 | G34: 0.471
A35: 合计 | C35: =SUM(C4:C34) -> 0.471 | D35: =SUM(D4:D34) -> 0 | E35: =SUM(E4:E34) -> 0 | F35: =SUM(F4:F34) -> 0 | G35: =G34 -> 0.471
A36: 备注：2019年1月1日起开始统计
A39: 2023-02-01 | B39: 废包装桶
A40: 2023-02-02 | B40: 废包装桶
A41: 2023-02-03 | B41: 废包装桶
A42: 2023-02-04 | B42: 废包装桶
A43: 2023-02-05 | B43: 废包装桶
A44: 2023-02-06 | B44: 废包装桶
A45: 2023-02-07 | B45: 废包装桶
A46: 2023-02-08 | B46: 废包装桶
A47: 2023-02-09 | B47: 废包装桶
A48: 2023-02-10 | B48: 废包装桶
A49: 2023-02-11 | B49: 废包装桶
A50: 2023-02-12 | B50: 废包装桶
A51: 2023-02-13 | B51: 废包装桶
A52: 2023-02-14 | B52: 废包装桶
A53: 2023-02-15 | B53: 废包装桶 | C53: 0.15 | G53: =G35+C53-F53 -> 0.621 | I53: 诸美娟
A54: 2023-02-16 | B54: 废包装桶 | G54: =G53+C54-F54 -> 0.621
A55: 2023-02-17 | B55: 废包装桶 | G55: =G54+C55-F55 -> 0.621
A56: 2023-02-18 | B56: 废包装桶 | G56: 0.621
A57: 2023-02-19 | B57: 废包装桶 | G57: 0.621
A58: 2023-02-20 | B58: 废包装桶 | C58: 0.479 | E58: 1.10 | G58: =G57+C58-E58 -> 0 | H58: 嘉兴市固体废物处置有限责任公司 | I58: 诸美娟
A59: 2023-02-21 | B59: 废包装桶 | G59: 0
A60: 2023-02-22 | B60: 废包装桶 | G60: 0
A61: 2023-02-23 | B61: 废包装桶 | G61: 0
A62: 2023-02-24 | B62: 废包装桶 | G62: 0
A63: 2023-02-25 | B63: 废包装桶 | G63: 0
A64: 2023-02-26 | B64: 废包装桶 | G64: 0
A65: 2023-02-27 | B65: 废包装桶 | G65: 0
A66: 2023-02-28 | B66: 废包装桶 | G66: 0
A67: 合计 | C67: =SUM(C39:C66) -> 0.629 | D67: =SUM(D39:D66) -> 0 | E67: =SUM(E39:E66) -> 1.10 | G67: =G66 -> 0
A68: 2023-03-01 | B68: 废包装桶
A69: 2023-03-02 | B69: 废包装桶
A70: 2023-03-03 | B70: 废包装桶
A71: 2023-03-04 | B71: 废包装桶
A72: 2023-03-05 | B72: 废包装桶
A73: 2023-03-06 | B73: 废包装桶
A74: 2023-03-07 | B74: 废包装桶
A75: 2023-03-08 | B75: 废包装桶
A76: 2023-03-09 | B76: 废包装桶
A77: 2023-03-10 | B77: 废包装桶
A78: 2023-03-11 | B78: 废包装桶
A79: 2023-03-12 | B79: 废包装桶
A80: 2023-03-13 | B80: 废包装桶
A81: 2023-03-14 | B81: 废包装桶 | C81: 0.017 | G81: 0.017 | I81: 诸美娟
A82: 2023-03-15 | B82: 废包装桶 | G82: =G81+C82-E82 -> 0.017
A83: 2023-03-16 | B83: 废包装桶 | G83: =G82+C83-E83 -> 0.017
A84: 2023-03-17 | B84: 废包装桶 | G84: 0.017
A85: 2023-03-18 | B85: 废包装桶 | G85: 0.017
A86: 2023-03-19 | B86: 废包装桶 | G86: 0.017
A87: 2023-03-20 | B87: 废包装桶 | C87: 0.119 | G87: 0.136 | I87: 诸美娟
A88: 2023-03-21 | B88: 废包装桶 | G88: 0.136
A89: 2023-03-22 | B89: 废包装桶 | G89: 0.136
A90: 2023-03-23 | B90: 废包装桶 | G90: 0.136
A91: 2023-03-24 | B91: 废包装桶 | G91: 0.136
A92: 2023-03-25 | B92: 废包装桶 | G92: 0.136
A93: 2023-03-26 | B93: 废包装桶 | G93: 0.136
A94: 2023-03-27 | B94: 废包装桶 | G94: 0.136
A95: 2023-03-28 | B95: 废包装桶 | G95: 0.136
A96: 2023-03-29 | B96: 废包装桶 | G96: 0.136
A97: 2023-03-30 | B97: 废包装桶 | G97: 0.136
A98: 2023-03-31 | B98: 废包装桶 | G98: 0.136
A99: 合计 | C99: =SUM(C68:C98) -> 0.136 | E99: =SUM(E68:E98) -> 0.00 | G99: =G98 -> 0.136
A100: 2023-04-01 | B100: 废包装桶
A101: 2023-04-02 | B101: 废包装桶
A102: 2023-04-03 | B102: 废包装桶
A103: 2023-04-04 | B103: 废包装桶
A104: 2023-04-05 | B104: 废包装桶
A105: 2023-04-06 | B105: 废包装桶
A106: 2023-04-07 | B106: 废包装桶
A107: 2023-04-08 | B107: 废包装桶
A108: 2023-04-09 | B108: 废包装桶
A109: 2023-04-10 | B109: 废包装桶
A110: 2023-04-11 | B110: 废包装桶
A111: 2023-04-12 | B111: 废包装桶
A112: 2023-04-13 | B112: 废包装桶
A113: 2023-04-14 | B113: 废包装桶
A114: 2023-04-15 | B114: 废包装桶
A115: 2023-04-16 | B115: 废包装桶
A116: 2023-04-17 | B116: 废包装桶
A117: 2023-04-18 | B117: 废包装桶
A118: 2023-04-19 | B118: 废包装桶 | C118: 0.192 | G118: =G99+C118-E118 -> 0.328 | I118: 诸美娟
A119: 2023-04-20 | B119: 废包装桶
A120: 2023-04-21 | B120: 废包装桶
A121: 2023-04-22 | B121: 废包装桶
A122: 2023-04-23 | B122: 废包装桶
A123: 2023-04-24 | B123: 废包装桶
A124: 2023-04-25 | B124: 废包装桶
A125: 2023-04-26 | B125: 废包装桶
A126: 2023-04-27 | B126: 废包装桶
A127: 2023-04-28 | B127: 废包装桶
A128: 2023-04-29 | B128: 废包装桶
A129: 2023-04-30 | B129: 废包装桶
G130: =G129+C130-F130 -> 0
A131: 合计 | C131: =SUM(C100:C129) -> 0.192 | E131: =SUM(E100:E129) -> 0 | G131: =G118 -> 0.328
A132: 2023-05-01 | B132: 废包装桶 | G132: =G131+C132-E132 -> 0.328
A133: 2023-05-02 | B133: 废包装桶 | G133: =G132+C133-E133 -> 0.328
A134: 2023-05-03 | B134: 废包装桶 | G134: 0.328
A135: 2023-05-04 | B135: 废包装桶 | G135: 0.328
A136: 2023-05-05 | B136: 废包装桶 | G136: 0.328
A137: 2023-05-06 | B137: 废包装桶 | G137: 0.328
A138: 2023-05-07 | B138: 废包装桶 | G138: 0.328
A139: 2023-05-08 | B139: 废包装桶 | G139: 0.328
A140: 2023-05-09 | B140: 废包装桶 | G140: 0.328
A141: 2023-05-10 | B141: 废包装桶 | G141: 0.328
A142: 2023-05-11 | B142: 废包装桶 | G142: 0.328
A143: 2023-05-12 | B143: 废包装桶 | G143: 0.328
A144: 2023-05-13 | B144: 废包装桶 | G144: 0.328
A145: 2023-05-14 | B145: 废包装桶 | G145: 0.328
A146: 2023-05-15 | B146: 废包装桶 | G146: 0.328
A147: 2023-05-16 | B147: 废包装桶 | G147: 0.328
A148: 2023-05-17 | B148: 废包装桶 | E148: 0.328 | G148: 0 | H148: 嘉兴市固体废物处置有限责任公司 | I148: 诸美娟
A149: 2023-05-18 | B149: 废包装桶 | G149: 0
A150: 2023-05-19 | B150: 废包装桶 | G150: 0
A151: 2023-05-20 | B151: 废包装桶 | G151: 0
A152: 2023-05-21 | B152: 废包装桶 | G152: 0
A153: 2023-05-22 | B153: 废包装桶 | G153: 0
A154: 2023-05-23 | B154: 废包装桶 | G154: 0
A155: 2023-05-24 | B155: 废包装桶 | G155: 0
A156: 2023-05-25 | B156: 废包装桶 | G156: 0
A157: 2023-05-26 | B157: 废包装桶 | G157: 0
A158: 2023-05-27 | B158: 废包装桶 | G158: 0
A159: 2023-05-28 | B159: 废包装桶 | G159: 0
A160: 2023-05-29 | B160: 废包装桶 | G160: 0
A161: 2023-05-30 | B161: 废包装桶 | G161: 0
A162: 2023-05-31 | B162: 废包装桶 | G162: 0
A163: 合计 | C163: =SUM(C132:C162) -> 0 | D163: =SUM(D132:D162) -> 0 | E163: =SUM(E132:E162) -> 0.328 | G163: =G162 -> 0
A164: 2023-06-01 | B164: 废包装桶 | C164: 0.142 | G164: =G163+C164-F164 -> 0.142 | I164: 诸美娟
A165: 2023-06-02 | B165: 废包装桶 | G165: =G164+C165-F165 -> 0.142
A166: 2023-06-03 | B166: 废包装桶 | G166: =G164+C166-F166 -> 0.142
A167: 2023-06-04 | B167: 废包装桶 | G167: 0.142
A168: 2023-06-05 | B168: 废包装桶 | G168: 0.142
A169: 2023-06-06 | B169: 废包装桶 | G169: 0.142
A170: 2023-06-07 | B170: 废包装桶 | G170: 0.142
A171: 2023-06-08 | B171: 废包装桶 | G171: 0.142
A172: 2023-06-09 | B172: 废包装桶 | G172: 0.142
A173: 2023-06-10 | B173: 废包装桶 | G173: 0.142
A174: 2023-06-11 | B174: 废包装桶 | G174: 0.142
A175: 2023-06-12 | B175: 废包装桶 | G175: 0.142
A176: 2023-06-13 | B176: 废包装桶 | G176: 0.142
A177: 2023-06-14 | B177: 废包装桶 | G177: 0.142
A178: 2023-06-15 | B178: 废包装桶 | G178: 0.142
A179: 2023-06-16 | B179: 废包装桶 | G179: 0.142
A180: 2023-06-17 | B180: 废包装桶 | G180: 0.142
A181: 2023-06-18 | B181: 废包装桶 | G181: 0.142
A182: 2023-06-19 | B182: 废包装桶 | G182: 0.142
A183: 2023-06-20 | B183: 废包装桶 | G183: 0.142
A184: 2023-06-21 | B184: 废包装桶 | G184: 0.142
A185: 2023-06-22 | B185: 废包装桶 | G185: 0.142
A186: 2023-06-23 | B186: 废包装桶 | G186: 0.142
A187: 2023-06-24 | B187: 废包装桶 | G187: 0.142
A188: 2023-06-25 | B188: 废包装桶 | G188: 0.142
A189: 2023-06-26 | B189: 废包装桶 | G189: 0.142
A190: 2023-06-27 | B190: 废包装桶 | G190: 0.142
A191: 2023-06-28 | B191: 废包装桶 | C191: 0.208 | G191: =G190+C191-E191 -> 0.35 | I191: 诸美娟
A192: 2023-06-29 | B192: 废包装桶 | E192: 0.35 | G192: =G191+C192-E192 -> 0 | H192: 嘉兴市固体废物处置有限责任公司 | I192: 诸美娟
A193: 2023-06-30 | B193: 废包装桶 | G193: =G192+C193-E193 -> 0
A195: 合计 | C195: =SUM(C164:C194) -> 0.35 | D195: =SUM(D164:D194) -> 0 | E195: =SUM(E164:E194) -> 0.35 | F195: =F167 -> 0 | G195: =G193 -> 0
A196: 2023-07-01 | B196: 废包装桶
A197: 2023-07-02 | B197: 废包装桶
A198: 2023-07-03 | B198: 废包装桶
A199: 2023-07-04 | B199: 废包装桶
A200: 2023-07-05 | B200: 废包装桶
A201: 2023-07-06 | B201: 废包装桶 | C201: 0.112 | G201: 0.112 | I201: 诸美娟
A202: 2023-07-07 | B202: 废包装桶
A203: 2023-07-08 | B203: 废包装桶
... 182 more rows

Sheet 2023年月度统计
A1: 生产过程产生的固体废物利用及处置情况（按日填写）板纸 ( 2023)
A2: 日期 | B2: 固 体 废 物 名 称 | C2: 产生数量 | D2: 自行处置数量 | E2: 委托利用、处置情况 | G2: 累计贮存数量（吨） | H2: 备注 | I2: 填表人
E3: 委托利用数量 | F3: 委托处置数量 | J3: 0
A4: 1月份 | B4: 废包装桶 | C4: ='2023年 '!C35 -> 0.471 | E4: ='2023年 '!E35 -> 0 | G4: ='2023年 '!G35 -> 0.471 | I4: 诸美娟
A5: 2月份 | B5: 废包装桶 | C5: ='2023年 '!C67 -> 0.629 | E5: ='2023年 '!E67 -> 1.1 | G5: ='2023年 '!G67 -> 0 | H5: 嘉兴市固体废物处置有限责任公司 | I5: 诸美娟
A6: 3月份 | B6: 废包装桶 | C6: ='2023年 '!C99 -> 0.136 | E6: ='2023年 '!E99 -> 0.00 | G6: ='2023年 '!G99 -> 0.136 | I6: 诸美娟
A7: 4月份 | B7: 废包装桶 | C7: ='2023年 '!C131 -> 0.192 | E7: ='2023年 '!E131 -> 0 | G7: ='2023年 '!G131 -> 0.328 | I7: 诸美娟
A8: 5月份 | B8: 废包装桶 | C8: ='2023年 '!C163 -> 0 | E8: ='2023年 '!E163 -> 0.328 | G8: ='2023年 '!G163 -> 0 | H8: 嘉兴市固体废物处置有限责任公司 | I8: 诸美娟
A9: 6月份 | B9: 废包装桶 | C9: ='2023年 '!C195 -> 0.35 | E9: ='2023年 '!E195 -> 0.35 | G9: ='2023年 '!G195 -> 0 | H9: 嘉兴市固体废物处置有限责任公司 | I9: 诸美娟
A10: 7月份 | B10: 废包装桶 | C10: ='2023年 '!C227 -> 0.112 | E10: ='2023年 '!E227 -> 0 | G10: ='2023年 '!G227 -> 0.112 | I10: 诸美娟 | J10: 7只
A11: 8月份 | B11: 废包装桶
A12: 9月份 | B12: 废包装桶
A13: 10月份 | B13: 废包装桶
A14: 11月份 | B14: 废包装桶
A15: 12月份 | B15: 废包装桶
A16: 合计 | C16: =SUM(C4:C15) -> 1.890 | E16: 1.778 | G16: =G10 -> 0.112
A18: 板纸废包装桶2019年1月份开始统计

Sheet Sheet3
